[Event "45th FIDE Olympiad 2024"]
[Site "Budapest"]
[Date "2024.09.11"]
[Round "1.69"]
[White "Deac, Bogdan-Daniel"]
[Black "Ortega Amarelle, Mariano"]
[Result "1-0"]
[ECO "A14"]
[WhiteElo "2680"]
[BlackElo "2453"]
[Annotator "TA"]
[PlyCount "95"]
[EventDate "2024.09.05"]
[EventType "team-tourn"]
[EventCountry "HUN"]
[SourceTitle "playchess.com"]
[Source "ChessBase"]
[SourceQuality "1"]
[WhiteTeam "Romania"]
[BlackTeam "Cape Verde"]
[WhiteTeamCountry "ROU"]
[TimeControl "40/5400+30:1800+30"]

{[%evp 11,95,12,8,-14,13,0,2,6,4,11,10,11,6,-2,39,37,29,24,29,28,24,16,9,18,14,22,45,55,109,101,99,106,140,134,141,135,162,173,176,160,171,178,177,156,208,183,218,194,222,206,268,295,331,346,338,300,306,295,304,302,283,220,338,315,531,450,465,222,621,459,724,718,761,756,765,739,1347,1442,1343,1337,1802,1048,5065,4714,1783,1715]} 1. Nf3 d5 2. g3 Nf6 3. Bg2 e6 4. O-O Be7 5. c4 O-O 6. d3 {[%cal Bd2d3,Bd3e4,Be4e5][%mdl 32]} c5 7. Ne5 b6 8. e4 dxe4 9. dxe4 {[%cal Oe5f7] With the idea Nxf7! The position is equal.} Bb7 10. Nc3 Nfd7 11. Nxd7 Nxd7 12. f4 {Inhibits Ne5.} Bf6 13. e5 Bxg2 14. Kxg2 Be7 15. Qe2 Qc7 16. Qe4 a6 17. Be3 Rae8 18. Rad1 {[%cal Ba1d1,Bd1d6,Bd6c6][%mdl 32]} f5 19. Nd5 Qc8 {[#] White leaves nothing to chance now.} (19... Qb8 $14 20. Qf3 Bd8) 20. Nxe7+ $1 $16 Rxe7 21. Qf3 {White is more active.} Qa8 22. Rd6 Qxf3+ 23. Kxf3 Rc8 {Black is weak on the dark squares} 24. Rfd1 Rc7 25. g4 $36 {[%mdl 2048] White is in control.} fxg4+ 26. Kxg4 Rb7 27. Rc6 Re8 (27... Kf7 $16 {was necessary.} 28. Rdd6 h6) 28. Rdd6 $18 Kf7 29. b3 a5 30. Bf2 h6 31. h4 {[%cal Bh2h4,Bh4h5][%mdl 32]} g6 32. h5 {aiming for hxg6+.} g5 33. Bg3 (33. fxg5 Nxe5+ 34. Kh3 Nxc6 (34... hxg5 35. Rxb6 Rxb6 36. Rxb6 $14) 35. Rxc6 hxg5 $19) 33... gxf4 34. Bxf4 a4 (34... Nb8 35. Rxb6 Rbe7 36. Bxh6 $18) 35. bxa4 Ra7 36. Rd3 (36. Bxh6 $2 Nxe5+ 37. Kf4 Nxc6 38. Rxc6 Rh8 $19 (38... Rxa4 $2 39. Bg5 $17)) 36... Rb8 (36... Ke7 $142 37. Rdd6 (37. Bxh6 $2 Nxe5+ 38. Kh4 Nxc6 $19) 37... Kf7) 37. Kf3 (37. Bxh6 $2 Nxe5+ 38. Kh4 Nxd3 $19 (38... Nxc6 $2 39. a5 $19)) 37... Rbb7 $2 (37... Rg8 38. Rdd6 (38. Bxh6 $2 Nxe5+ 39. Kf4 Nxd3+ $19) 38... Re8) 38. Rcd6 (38. Bxh6 $2 Nxe5+ (38... Rxa4 $2 39. Re3 $18) 39. Ke4 Nxc6 $19) 38... Ke7 39. Bg3 ({Worse is} 39. Bxh6 Nxe5+ (39... Rxa4 $2 {too greedy.} 40. Bg5+ Ke8 41. Rxe6+ Kf8 42. Ke4 $18) 40. Kf4 Nxd3+ 41. Rxd3 Rxa4 $17) (39. Kg2 $142) 39... Nb8 $2 (39... Nf8 40. Bf4 Nd7) 40. Ra3 {White is clearly winning.} b5 (40... Nd7 $142 41. Ke4 Nf8) 41. cxb5 Rxb5 42. Bh4+ Kf7 43. Kg3 Rb4 44. Rf3+ Kg7 45. Rxe6 Rbxa4 46. Bf6+ Kf7 47. Rd6 {White threatens e6+ and mate.} Re4 {[#]} 48. e6+ $1 {[%mdl 512] Weighted Error Value: White=0.27 (precise) /Black=0.42.  Mistake:       	White=1     	Black=6      Inaccurate:     	---       	Black=4      OK:         	White=12    	Black=11     Best:        	White=2     	---        Strong:       	White=1     	---} 1-0

[Event "45th FIDE Olympiad 2024"]
[Site "Budapest"]
[Date "2024.09.11"]
[Round "1.69"]
[White "Miguel, Sergio"]
[Black "Christopher, Art"]
[Result "1-0"]
[ECO "C55"]
[WhiteElo "2241"]
[BlackElo "1779"]
[Annotator "ChessBase"]
[PlyCount "97"]
[EventDate "2024.09.05"]
[EventType "team-tourn"]
[EventCountry "HUN"]
[SourceTitle "playchess.com"]
[Source "ChessBase"]
[SourceQuality "1"]
[WhiteTeam "Angola"]
[BlackTeam "British Virgin Islands"]
[WhiteTeamCountry "ANG"]
[BlackTeamCountry "IVB"]
[TimeControl "40/5400+30:1800+30"]

1. e4 e5 2. Nf3 Nc6 3. Bc4 Nf6 4. d3 Be7 5. O-O O-O 6. Nc3 d6 7. a4 Nb4 8. Ne2 c5 9. Ng3 Bg4 10. c3 Nc6 11. h3 Be6 12. Ng5 Bxc4 13. dxc4 h6 14. Nf3 Qc7 15. Re1 Rfe8 16. Nh4 Bf8 17. Nhf5 Rad8 18. Qf3 Re6 19. b3 Ne7 20. Ne3 Ng6 21. Ngf5 b6 22. g3 Qb7 23. Ng4 Nxg4 24. hxg4 Ne7 25. Kg2 Nxf5 26. gxf5 Rf6 27. g4 g5 28. Qd3 a6 29. f3 Bg7 30. Be3 Qc7 31. Rh1 Qb7 32. Rh5 Kf8 33. Rah1 Ke7 34. Qd2 Rg8 35. Kf1 b5 36. cxb5 axb5 37. a5 b4 38. cxb4 cxb4 39. Kg2 Ra8 40. Bb6 Rc8 41. Qxb4 Qa6 42. Kg3 Kd7 43. Rd1 Bf8 44. Rd5 Qe2 45. Rh2 Qa6 46. Rhd2 h5 47. gxh5 Rh6 48. Kg4 Qf1 49. Qb5+ 1-0

[Event "45th FIDE Olympiad 2024"]
[Site "Budapest"]
[Date "2024.09.11"]
[Round "1.70"]
[White "Alho, Diogo"]
[Black "Shevchenko, Kirill"]
[Result "0-1"]
[ECO "A49"]
[WhiteElo "2192"]
[BlackElo "2673"]
[Annotator "TA"]
[PlyCount "74"]
[EventDate "2024.09.05"]
[EventType "team-tourn"]
[EventCountry "HUN"]
[SourceTitle "playchess.com"]
[Source "ChessBase"]
[SourceQuality "1"]
[WhiteTeam "Cape Verde"]
[BlackTeam "Romania"]
[BlackTeamCountry "ROU"]
[TimeControl "40/5400+30:1800+30"]

{[%evp 12,74,17,8,41,19,31,22,50,33,45,34,29,33,39,25,35,28,27,22,57,66,50,52,136,131,136,83,58,52,60,42,47,53,43,-16,-24,-20,-12,-20,-20,-18,-24,-68,-68,-56,-13,-16,-14,-16,-6,-41,-50,-40,-30,-106,-113,-100,-35,-210,-100,-137,-122,-922,-911]} 1. d4 Nf6 2. Nf3 g6 3. g3 Bg7 4. Bg2 O-O 5. O-O d6 6. a4 Na6 7. Nc3 c5 8. e4 cxd4 9. Nxd4 Bd7 {The position is equal.} 10. h3 Nb4 11. Be3 Rc8 12. Qd2 a6 {Prevents Ncb5.} 13. Rfe1 e5 14. Nde2 {[%cal Oe1d1]} Be6 15. Red1 {[%cal Oa1c1]} Qa5 16. Rac1 Rfd8 17. Nd5 Nfxd5 (17... Bxd5 $14 18. exd5 e4) 18. exd5 $16 Bf5 19. c3 (19. Nc3 $142) 19... Nd3 20. Ra1 e4 $1 {[%cal Od8e8]} 21. g4 Bd7 22. Bxe4 Ne5 23. b3 {Dodges Nc4} ({White should try} 23. Bd4 $14) 23... f5 $1 $11 24. gxf5 Bxf5 25. Bg2 {[#]} Bxh3 $1 {[%cal Od8f8] White should prevent ...Rf8!} 26. Rac1 {[#]} (26. Nf4 Bxg2) 26... Re8 $1 {With the idea ...Bg4.} 27. c4 (27. Bxh3 $2 {is the wrong capture.} Nf3+ 28. Kf1 Nxd2+ $19) ({Avoid the trap} 27. b4 $2 Qxa4 28. Nf4 Bxg2 29. Kxg2 Nc4 $19) (27. Nf4 Bxg2) 27... Qd8 {And now ...Qh4 would win.} 28. Bf4 Qh4 29. Bg3 $1 Qg4 {Threatens to win with ...Bxg2.} 30. Nd4 Rf8 $40 {[%mdl 128] aiming for ...Bxg2. Black is up to no good.} 31. Qe2 Qxe2 32. Nxe2 Bg4 33. Kf1 (33. Nf4 $1 $11 {keeps the balance.}) 33... Rce8 $17 {Black has more active pieces.} 34. Rc2 Bh6 {Inhibits Rdd2.} ({Black should play} 34... h5 $17 {...g5 would now be deadly.} 35. c5 g5) 35. Ra1 $2 (35. Rd4 $1 $15 Bc8 36. a5) 35... Nf3 (35... Nd3 $19 {has better winning chances. White must now prevent ...Re3.} 36. Rd1 Re3) 36. Rd1 Be3 37. Bxd6 {[%mdl 8192] [#]} (37. b4 $17) 37... Nd2+ $1 {[%mdl 512] Weighted Error Value: White=0.43/Black=0.16 (very precise) .  Loses game:     	White=2     	---        Mistake:       	White=3     	Black=3      Inaccurate:     	White=3     	Black=3      OK:         	White=10    	Black=14     Best:        	White=1     	Black=2      Strong:       	White=1     	Black=2      Brilliant:      	---       	Black=2} 0-1

[Event "45th FIDE Olympiad 2024"]
[Site "Budapest"]
[Date "2024.09.11"]
[Round "1.70"]
[White "Potter, Simon"]
[Black "Sapalo, Gabriel"]
[Result "0-1"]
[ECO "B50"]
[WhiteElo "1663"]
[BlackElo "2058"]
[Annotator "NA"]
[PlyCount "75"]
[EventDate "2024.09.05"]
[EventType "team-tourn"]
[EventCountry "HUN"]
[SourceTitle "playchess.com"]
[Source "ChessBase"]
[SourceQuality "1"]
[WhiteTeam "British Virgin Islands"]
[BlackTeam "Angola"]
[WhiteTeamCountry "IVB"]
[BlackTeamCountry "ANG"]
[TimeControl "40/5400+30:1800+30"]

1. e4 c5 2. Nf3 d6 3. Bc4 e6 4. a3 a6 5. d3 Nc6 6. O-O Nf6 7. Nc3 Be7 8. Ne2 b5 9. Ba2 d5 10. exd5 Nxd5 11. Ng3 O-O 12. Bd2 Bb7 13. Re1 Rc8 14. Ne5 Nxe5 15. Rxe5 Bf6 16. Rh5 Bxb2 17. Rb1 Nc3 18. Bxc3 Bxc3 19. Qg4 g6 20. Rh3 Bg7 21. Ne2 Bd5 22. Bxd5 Qxd5 23. Re1 Qa2 24. Nf4 e5 25. Nh5 gxh5 26. Rxh5 Rc6 27. h3 Rg6 28. Qf3 Qxc2 29. Qe4 Rd8 30. Re3 Qd1+ 31. Kh2 Qxh5 32. Qb7 Qg5 33. Re2 f5 34. f3 Rxd3 35. Qc8+ Rd8 36. Qxc5 Qg3+ 37. Kh1 Rd1+ 38. Qg1 0-1

[Event "45th FIDE Olympiad 2024"]
[Site "Budapest"]
[Date "2024.09.11"]
[Round "1.71"]
[White "Lupulescu, Constantin"]
[Black "Mirulla, David"]
[Result "1-0"]
[ECO "E73"]
[WhiteElo "2590"]
[BlackElo "1904"]
[Annotator "TA"]
[PlyCount "47"]
[EventDate "2024.09.05"]
[EventType "team-tourn"]
[EventCountry "HUN"]
[SourceTitle "playchess.com"]
[Source "ChessBase"]
[SourceQuality "1"]
[WhiteTeam "Romania"]
[BlackTeam "Cape Verde"]
[WhiteTeamCountry "ROU"]
[TimeControl "40/5400+30:1800+30"]

{[%evp 12,46,34,34,42,39,28,35,111,107,111,78,151,125,177,152,184,176,277,252,275,279,324,323,413,401,385,299,298,296,858,826,899,854,876,866,1213]} 1. d4 Nf6 2. c4 g6 3. Nc3 Bg7 4. e4 d6 5. Be2 O-O 6. Be3 Nc6 {[%cal Bb8c6,Bc6e5,Be5g4][%mdl 32]} 7. d5 Ne5 8. f4 Neg4 9. Bd2 h5 (9... Nh6 $1 $14) 10. h3 $16 Nh6 11. Nf3 e6 (11... c6 $142) 12. O-O {White is more active.} Qe7 (12... exd5 $16 {keeps fighting.} 13. cxd5 c6) 13. Qc2 Re8 14. Rae1 Nd7 (14... exd5 $142 15. cxd5 c6 (15... Nxe4 $2 {loses.} 16. Nxe4 c5 17. Bb5 $18)) 15. Qc1 $18 f5 16. dxe6 {[%cal Bd5e6,Be6e7][%mdl 32]} Nb6 17. Nd5 Qd8 18. e7 Qd7 19. e5 Nxd5 20. cxd5 {Threatens to win with Nh4.} dxe5 $2 {[#]} (20... Qxe7 21. Bc4 Bd7) 21. fxe5 {White is clearly winning.} Kh7 {Black is weak on the dark squares} 22. Ng5+ {[%cal Bf3g5,Bg5e6,Be6g7][%mdl 32]} Kh8 23. Ne6 Nf7 24. Nxg7 {White took control after the opening.   Weighted Error Value: White=0.14 (very precise) /Black=0.43.  Mistake:       	---       	Black=5      OK:         	White=9     	Black=4} 1-0

[Event "45th FIDE Olympiad 2024"]
[Site "Budapest"]
[Date "2024.09.11"]
[Round "1.71"]
[White "Silva, David"]
[Black "Samuel, Jhon"]
[Result "1-0"]
[ECO "B11"]
[WhiteElo "2363"]
[BlackElo "1545"]
[Annotator "TA"]
[PlyCount "55"]
[EventDate "2024.09.05"]
[EventType "team-tourn"]
[EventCountry "HUN"]
[SourceTitle "playchess.com"]
[Source "ChessBase"]
[SourceQuality "1"]
[WhiteTeam "Angola"]
[BlackTeam "British Virgin Islands"]
[WhiteTeamCountry "ANG"]
[BlackTeamCountry "IVB"]
[TimeControl "40/5400+30:1800+30"]

{[%evp 10,55,51,5,42,43,51,64,79,58,62,59,50,64,87,80,121,93,137,119,109,97,235,243,248,239,241,236,591,594,824,812,823,824,1002,1008,1017,977,1045,925,914,884,909,903,877,887,1244,1238]} 1. e4 c6 2. Nc3 d5 3. Nf3 Bg4 4. h3 Bxf3 5. Qxf3 d4 6. Ne2 (6. Bc4 $14 e6 7. Ne2) 6... e5 7. Ng3 Qf6 8. Qb3 Qe7 {White is slightly better.} 9. Nf5 Qd7 10. Qg3 {[%csl LRe5,LRg7]} f6 $1 11. Bc4 $36 {[%mdl 2048] White has some pressure. Black is weak on the light squares} g6 {[#]} 12. Nh4 {[%cal Oh4g6] White is much more active.} Ne7 13. d3 Na6 {[%cal Bb8a6,Ba6c7,Bc7e6][%mdl 32]} 14. a3 Nc7 15. f4 Bg7 (15... exf4 $16 16. Qxf4 (16. Bxf4 O-O-O $14) 16... Bg7) 16. fxe5 $18 fxe5 17. O-O {[#] Rf7 would now be deadly.} Ne6 18. Bd2 O-O-O $2 {[%cal Ba8d8,Bd8f8,Bf8f6][%mdl 32]} (18... Nf4 {is tougher.}) 19. Rf7 {White is clearly winning.} Rhf8 20. Bxe6 Qxe6 21. Rxg7 Rf7 22. Rxf7 Qxf7 23. Qxe5 Rf8 24. Qxd4 b6 25. Nf3 Qf6 26. Qxf6 Rxf6 27. Bg5 Rf7 28. Ne5 {White took control after the opening.   Weighted Error Value: White=0.09 (flawless) /Black=0.61.  Mistake:       	---       	Black=2      Inaccurate:     	---       	Black=3      OK:         	White=10    	Black=3      Best:        	---       	Black=1      Strong:       	---       	Black=1} 1-0

[Event "45th FIDE Olympiad 2024"]
[Site "Budapest"]
[Date "2024.09.11"]
[Round "1.72"]
[White "Vaz, Jose Carlos"]
[Black "Parligras, Mircea-Emilian"]
[Result "0-1"]
[ECO "B51"]
[WhiteElo "1909"]
[BlackElo "2537"]
[Annotator "TA"]
[PlyCount "102"]
[EventDate "2024.09.05"]
[EventType "team-tourn"]
[EventCountry "HUN"]
[SourceTitle "playchess.com"]
[Source "ChessBase"]
[SourceQuality "1"]
[WhiteTeam "Cape Verde"]
[BlackTeam "Romania"]
[BlackTeamCountry "ROU"]
[TimeControl "40/5400+30:1800+30"]

{[%evp 9,102,20,15,0,11,0,0,0,0,-9,-12,-5,-4,-19,-11,-58,-60,-60,-54,-98,-108,-103,-112,-108,-108,-123,-114,-125,-118,-121,-121,-117,-110,-133,-136,-133,-134,-137,-126,-134,-127,-152,-155,-164,-162,-182,-182,-177,-177,-181,-179,-202,-202,-248,-250,-239,-259,-266,-259,-272,-273,-266,-273,-275,-273,-273,-273,-273,-273,-272,-257,-264,-258,-244,-233,-236,-236,-364,-364,-569,-654,-605,-356,-880,-841,-926,-385,-1930,-2205,-2065,-2302,-2115,-1938,-1194,-1114]} 1. e4 c5 2. Nf3 d6 3. Bb5+ Nd7 4. d4 cxd4 5. Nxd4 Ngf6 6. Nc3 a6 7. Bxd7+ Bxd7 8. O-O {The position is equal.} e6 9. Kh1 b5 {Threatening ...b4.} 10. a3 Be7 11. Bg5 O-O {[%cal Of6e4]} 12. f4 (12. Qd3 $11) 12... h6 $1 $15 13. Bh4 {[#]} Nxe4 $1 14. Bxe7 {Black keeps a firm grip on the game.} (14. Nxe4 Bxh4) 14... Nxc3 15. Bxd8 Nxd1 16. Raxd1 Rfxd8 17. Rd2 Kf8 18. Re1 Rac8 19. Kg1 Bc6 20. Kf2 Bb7 21. g4 g5 22. fxg5 hxg5 23. Kg3 Rd7 24. Rf2 Kg7 25. c3 Rc5 26. Re3 Re5 27. Rfe2 Kf6 28. Rf2+ Ke7 29. Rfe2 f6 30. h3 Rc7 31. h4 gxh4+ 32. Kxh4 Rc8 33. Rh3 Rh8+ 34. Kg3 Rxh3+ 35. Kxh3 Rxe2 36. Nxe2 $19 {[%mdl 4096] Endgame. KB-KN} Be4 37. Kg3 e5 38. Kf2 Bc2 {White must now prevent ...Bd1.} 39. Ng3 Kf7 40. Nf1 Ke6 41. Ne3 Be4 42. Ke2 d5 43. Kf2 (43. Nf1 $142) 43... d4 44. cxd4 (44. Nf1 $142) 44... exd4 45. Nf1 Ke5 46. Kg3 $2 (46. Ng3) 46... a5 47. Nd2 Bd5 {And now ...a4 would win.} 48. b3 $2 (48. Kf2) 48... b4 {Black is clearly winning.} 49. axb4 axb4 {aiming for ...d3.} 50. Kf2 Kf4 {[%cal Od4d3] Strongly threatening ...d3!} 51. Ke2 {[#]} Be4 $1 {Weighted Error Value: White=0.42/Black=0.07 (flawless) .  Mistake:       	White=3     	---        Inaccurate:     	White=1     	Black=1      OK:         	White=11    	Black=20     Best:        	White=1     	Black=1      Strong:       	---       	Black=1      Brilliant:      	---       	Black=1} ({Weaker is} 51... Kxg4 52. Kd3 $11) 0-1

[Event "45th FIDE Olympiad 2024"]
[Site "Budapest"]
[Date "2024.09.11"]
[Round "1.73"]
[White "Michaelides, Konstantinos"]
[Black "Navara, David"]
[Result "0-1"]
[ECO "D02"]
[WhiteElo "2297"]
[BlackElo "2681"]
[Annotator "TA"]
[PlyCount "120"]
[EventDate "2024.09.05"]
[EventType "team-tourn"]
[EventCountry "HUN"]
[SourceTitle "playchess.com"]
[Source "ChessBase"]
[SourceQuality "1"]
[WhiteTeam "Cyprus"]
[BlackTeam "Czech Republic"]
[WhiteTeamCountry "CYP"]
[BlackTeamCountry "CZE"]
[TimeControl "40/5400+30:1800+30"]

{[%evp 11,120,29,25,15,13,1,10,10,6,11,7,2,20,5,15,7,4,0,8,4,0,0,0,0,0,0,0,0,0,0,0,0,0,0,0,-1,0,0,0,-30,-9,-9,0,0,0,0,0,0,0,0,0,0,0,-18,-18,-18,-18,-19,-19,-33,0,0,0,-19,-18,-18,-5,-19,-19,-19,-19,-27,-19,-19,-5,-5,-5,-8,0,0,0,0,0,0,0,0,0,0,0,0,0,0,0,0,0,0,0,0,0,0,0,-29984,-29985,-29985,-29986,-29986,-29987,-29987,-29988,-29988,-29989]} 1. d4 d5 2. Nf3 Nf6 3. Bf4 c5 4. e3 Nc6 5. Nbd2 Bg4 6. c3 e6 7. Bb5 cxd4 8. exd4 Bd6 9. Bxd6 {The position is equal.} Qxd6 10. O-O O-O 11. Re1 Rfe8 12. Qa4 Bxf3 13. Nxf3 a6 14. Bxc6 Qxc6 15. Qxc6 bxc6 16. Ne5 Rec8 17. Nd3 Nd7 18. b4 a5 19. a4 Rc7 20. Ra2 Kf8 21. Kf1 Ke7 22. Ke2 Rca7 23. Rea1 g5 24. h3 f6 25. Kd2 e5 26. b5 cxb5 27. axb5 {[%cal Od3b4]} Kd6 28. Nb4 {aiming for Nc6.} a4 (28... axb4 $2 29. Rxa7 bxc3+ 30. Kxc3 Rc8+ 31. Kd2 $18) 29. Nc6 Rb7 30. Rxa4 Rxa4 31. Rxa4 Rxb5 $11 {[%mdl 4096] Endgame. KRN-KRN} 32. Ra6 {Threatens to win with Na7+.} Rb6 33. Nb4 Rxa6 34. Nxa6 {KN-KN} h5 35. Nb4 h4 36. Ke3 Nb6 37. f3 Ke6 38. Nc2 Nc8 39. Nb4 Ne7 40. Nc2 Ng6 41. Kf2 Nf4 42. Ne3 Nd3+ 43. Ke2 Nb2 44. Kd2 exd4 45. cxd4 Nc4+ 46. Kd3 Nxe3 47. Kxe3 {KP-KP} Kf5 (47... Kd6 $5 48. f4 $8 Ke6 $11) 48. Ke2 Kf4 49. Kf2 f5 50. Ke2 Kg3 51. Kf1 g4 52. fxg4 fxg4 53. hxg4 Kxg4 {KPP-KPP} 54. Kg1 Kf4 {( -> ...Ke3)} (54... Kg3 {is a self mate.} 55. Kh1 Kf4 56. Kh2 Ke4 57. Kh3 Kxd4 58. Kxh4 Ke4 59. Kh3 d4 60. Kg3 Ke3 61. Kg4 d3 62. Kf5 d2 63. g4 d1=Q (63... d1=B 64. g5 $11) 64. g5 Qd5+ (64... Qf3+ {leads to mate.} 65. Ke6 Ke4 66. g6 Qf5+ 67. Kd6 Qxg6+ 68. Kc5 Qa6 69. Kb4 Qc6 70. Ka5 Kd4 71. Kb4 Qb6+ 72. Ka4 Kc4 73. Ka3 Qb3#) 65. Kf6 Kf4 66. g6 Qd6+ 67. Kf7 Ke5 68. g7 Qf6+ 69. Kg8 Qf5 70. Kh8 Qh3+ 71. Kg8 Kf6 72. Kf8 Qc8#) 55. Kh2 Ke4 (55... Kf5 $5 56. Kh3 $8 Ke4 57. Kxh4 Kxd4 $11) 56. Kh3 $2 {[%mdl 8192] [#]} (56. g3 $11) 56... Kxd4 {Black mates.} 57. Kxh4 Ke3 58. g4 d4 59. g5 {[#]} d3 $1 60. g6 d2 {Weighted Error Value: White=0.13 (very precise) /Black=0.03 (flawless) .  Loses game:     	White=1     	---        Inaccurate:     	White=1     	Black=1      OK:         	White=23    	Black=22     Best:        	White=2     	Black=2} 0-1

[Event "45th FIDE Olympiad 2024"]
[Site "Budapest"]
[Date "2024.09.11"]
[Round "1.74"]
[White "Zilka, Stepan"]
[Black "Antoniou, Rafail"]
[Result "1-0"]
[ECO "B45"]
[WhiteElo "2574"]
[BlackElo "2007"]
[Annotator "TA"]
[PlyCount "75"]
[EventDate "2024.09.05"]
[EventType "team-tourn"]
[EventCountry "HUN"]
[SourceTitle "playchess.com"]
[Source "ChessBase"]
[SourceQuality "1"]
[WhiteTeam "Czech Republic"]
[BlackTeam "Cyprus"]
[WhiteTeamCountry "CZE"]
[BlackTeamCountry "CYP"]
[TimeControl "40/5400+30:1800+30"]

{[%evp 21,75,20,28,18,29,39,33,35,39,34,31,12,14,14,14,0,0,16,8,10,12,9,8,8,11,12,12,0,0,0,27,8,6,0,14,0,3,3,47,10,52,52,393,373,417,407,466,208,820,795,695,639,952,395,860,835]} 1. e4 c5 2. Nf3 e6 3. d4 cxd4 4. Nxd4 Nf6 {[%cal Bg8f6,Bf6d5,Bd5e3][%mdl 32]} 5. Nc3 Nc6 6. Nxc6 bxc6 7. e5 Nd5 8. Ne4 Qc7 9. f4 Qb6 10. c4 Ne3 11. Qd3 Bb4+ 12. Bd2 (12. Nc3 {simplifies} Nxf1 13. Rxf1 Ba6 14. a3) 12... Ba6 13. Bxb4 Qxb4+ 14. Kf2 {White is slightly better.} Qxb2+ 15. Be2 Nxc4 16. Rhd1 {[%cal Oa1b1] [#] And now Rab1! would win. Chess con chili.} Qb6+ 17. Qd4 $1 {aiming for Nc5.} Nb2 18. Bxa6 $1 {Strongly threatening Rd2.} Nxd1+ 19. Rxd1 Qxd4+ ({Stronger than} 19... Qxa6 20. Qxd7+ Kf8 21. Nd6 Qb6+ 22. Kf3) 20. Rxd4 Rb8 {Dodges Bb7} 21. Be2 {[%mdl 1024] White has compensation.} Ke7 22. Nc5 Rhd8 23. Ra4 Ra8 24. Ba6 {[#] Bb7 is the strong threat.} Rab8 25. Bd3 Ra8 26. Ke3 h6 27. g4 f6 28. h4 {[%cal Bh2h4,Bh4h5][%mdl 32]} fxe5 29. fxe5 Rf8 30. Rd4 Rad8 31. h5 Rf7 $2 {[%mdl 8192] This move loses the game for Black.} ({Better is} 31... a5 $14) 32. Rb4 $18 Kf8 33. Rb7 Re7 34. Rb1 (34. Rxa7 $142 {Threatens to win with Bg6.} d6 35. Rxe7 Kxe7 36. Nb7) 34... Kg8 $2 (34... d6 35. Nb7 Rb8 36. Nxd6 Rxb1 37. Bxb1 Rc7) 35. Bg6 Kf8 36. Ne4 a5 37. Nd6 (37. a4 $142 Kg8 38. Kd4) 37... Ra8 $2 (37... a4 38. Rb4 Ra8) 38. a4 {Weighted Error Value: White=0.34/Black=0.33.  Loses game:     	---       	Black=1      Mistake:       	White=1     	Black=1      Inaccurate:     	White=1     	Black=3      OK:         	White=7     	Black=10     Best:        	White=3     	---        Strong:       	White=2     	---} 1-0

[Event "45th FIDE Olympiad 2024"]
[Site "Budapest"]
[Date "2024.09.11"]
[Round "1.74"]
[White "Garzon Zapatanga, Christopher Leonel"]
[Black "Nicolas, Carbonell"]
[Result "1-0"]
[ECO "C42"]
[WhiteElo "2216"]
[BlackElo "1798"]
[Annotator "ChessBase"]
[PlyCount "57"]
[EventDate "2024.09.05"]
[EventType "team-tourn"]
[EventCountry "HUN"]
[SourceTitle "playchess.com"]
[Source "ChessBase"]
[SourceQuality "1"]
[WhiteTeam "Ecuador"]
[BlackTeam "Burkina Faso"]
[WhiteTeamCountry "ECU"]
[BlackTeamCountry "BUR"]
[TimeControl "40/5400+30:1800+30"]

1. e4 e5 2. Nf3 Nf6 3. Nxe5 Qe7 4. d4 Nc6 5. Nc3 Nxe5 6. dxe5 Qxe5 7. Bd3 Bb4 8. Bd2 d5 9. f4 Qd4 10. e5 Bc5 11. Qf3 Ng4 12. O-O-O c6 13. Rde1 Qf2 14. Be2 Be3 15. Qxf2 Bxf2 16. Ref1 Be3 17. h3 Bxd2+ 18. Kxd2 Nh6 19. g4 g6 20. Bd3 O-O 21. Ne2 c5 22. c3 b6 23. Ng3 Kh8 24. f5 Rg8 25. f6 Nxg4 26. hxg4 Bxg4 27. Rxh7+ Kxh7 28. Rh1+ Bh5 29. Rxh5# 1-0